[Event "Juniorallsvenskan 2019, Division 1 and 2"]
[Site "Molnlycke kulturhus, Biblioteksgatan 2, Molnlycke, Sweden"]
[Date "2019.11.23"]
[Round "3.4"]
[White "Nord, Alexander"]
[Black "Aira, Leonardo"]
[Result "1/2-1/2"]
[TimeControl "90 minutes + 30 seconds per move from move one"]
[WhiteFideId "1738135"]
[BlackFideId "1721097"]
[WhiteElo "1845"]
[BlackElo "1955"]

1. d4 {[%clk 01:30:57]} {[%emt 00:00:02]} e6 {[%clk 01:30:52]} {[%emt
00:00:07]} 2. Nf3 {[%clk 01:31:17]} {[%emt 00:00:10]} d5 {[%clk 01:30:57]}
{[%emt 00:00:26]} 3. g3 {[%clk 01:31:43]} {[%emt 00:00:05]} Be7 {[%clk
01:31:21]} {[%emt 00:00:04]} 4. Bg2 {[%clk 01:32:10]} {[%emt 00:00:04]} Nf6
{[%clk 01:31:42]} {[%emt 00:00:09]} 5. O-O {[%clk 01:32:35]} {[%emt 00:00:05]}
O-O {[%clk 01:32:05]} {[%emt 00:00:07]} 6. c4 {[%clk 01:32:52]} {[%emt
00:00:13]} c5 {[%clk 01:30:51]} {[%emt 00:01:43]} 7. cxd5 {[%clk 01:30:35]}
{[%emt 00:02:48]} exd5 {[%clk 01:30:53]} {[%emt 00:00:27]} 8. dxc5 {[%clk
01:27:49]} {[%emt 00:03:16]} Bxc5 {[%clk 01:29:48]} {[%emt 00:01:35]} 9. Bg5
{[%clk 01:26:40]} {[%emt 00:01:39]} Be6 {[%clk 01:21:00]} {[%emt 00:09:17]} 10.
Nc3 {[%clk 01:23:20]} {[%emt 00:03:50]} Be7 {[%clk 01:16:20]} {[%emt 00:05:10]}
11. Nd4 {[%clk 01:13:31]} {[%emt 00:10:19]} Nc6 {[%clk 01:11:35]} {[%emt
00:05:16]} 12. e3 {[%clk 01:11:49]} {[%emt 00:02:13]} h6 {[%clk 01:10:09]}
{[%emt 00:01:56]} 13. Bxf6 {[%clk 01:11:39]} {[%emt 00:00:39]} Bxf6 {[%clk
01:10:31]} {[%emt 00:00:07]} 14. Nce2 {[%clk 01:11:14]} {[%emt 00:00:55]} Qb6
{[%clk 01:06:41]} {[%emt 00:04:20]} 15. Qd2 {[%clk 01:10:08]} {[%emt 00:01:36]}
Rac8 {[%clk 00:56:36]} {[%emt 00:10:36]} 16. Rac1 {[%clk 01:07:28]} {[%emt
00:03:07]} Rfd8 {[%clk 00:47:14]} {[%emt 00:09:54]} 17. Rfd1 {[%clk 01:05:40]}
{[%emt 00:02:18]} a5 {[%clk 00:36:13]} {[%emt 00:11:31]} 18. a4 {[%clk
00:40:36]} {[%emt 00:25:35]} Nb4 {[%clk 00:30:09]} {[%emt 00:06:33]} 19. Nb5
{[%clk 00:34:45]} {[%emt 00:06:23]} Bd7 {[%clk 00:23:53]} {[%emt 00:06:46]} 20.
Nbc3 {[%clk 00:27:16]} {[%emt 00:07:57]} Bc6 {[%clk 00:17:03]} {[%emt
00:07:21]} 21. Nd4 {[%clk 00:21:42]} {[%emt 00:06:04]} Na6 {[%clk 00:12:58]}
{[%emt 00:04:35]} 22. Nxd5 {[%clk 00:18:56]} {[%emt 00:03:17]} Bxd5 {[%clk
00:13:15]} {[%emt 00:00:13]} 23. Rxc8 {[%clk 00:18:47]} {[%emt 00:00:38]} Rxc8
{[%clk 00:13:12]} {[%emt 00:00:33]} 24. Bxd5 {[%clk 00:19:10]} {[%emt
00:00:07]} Rd8 {[%clk 00:11:03]} {[%emt 00:02:39]} 25. Bg2 {[%clk 00:17:40]}
{[%emt 00:02:00]} Nc5 {[%clk 00:09:40]} {[%emt 00:01:51]} 26. Qc2 {[%clk
00:16:18]} {[%emt 00:01:53]} Qb4 {[%clk 00:08:54]} {[%emt 00:01:16]} 27. b3
{[%clk 00:09:46]} {[%emt 00:07:03]} Bxd4 {[%clk 00:07:02]} {[%emt 00:02:21]} 28.
Rxd4 {[%clk 00:10:02]} {[%emt 00:00:13]} Rxd4 {[%clk 00:06:59]} {[%emt
00:00:34]} 29. exd4 {[%clk 00:10:31]} {[%emt 00:00:01]} Qxd4 {[%clk 00:06:09]}
{[%emt 00:01:20]} 30. Bf1 {[%clk 00:09:07]} {[%emt 00:01:55]} b6 {[%clk
00:05:04]} {[%emt 00:01:35]} 31. Qf5 {[%clk 00:07:52]} {[%emt 00:01:44]} g6
{[%clk 00:04:54]} {[%emt 00:00:39]} 32. Qf3 {[%clk 00:07:54]} {[%emt 00:00:27]}
Kg7 {[%clk 00:04:09]} {[%emt 00:01:16]} 33. Bc4 {[%clk 00:08:14]} {[%emt
00:00:10]} Qf6 {[%clk 00:04:06]} {[%emt 00:00:33]} 34. Kg2 {[%clk 00:08:00]}
{[%emt 00:00:44]} g5 {[%clk 00:01:53]} {[%emt 00:02:45]} 35. h3 {[%clk
00:06:23]} {[%emt 00:02:07]} Qe7 {[%clk 00:01:29]} {[%emt 00:00:52]} 36. Bd5
{[%clk 00:05:16]} {[%emt 00:01:39]} Qf6 {[%clk 00:01:20]} {[%emt 00:00:39]} 37.
Bc4 {[%clk 00:05:36]} {[%emt 00:00:10]} Nd7 {[%clk 00:00:47]} {[%emt 00:01:03]}
38. Qe4 {[%clk 00:04:23]} {[%emt 00:01:40]} Ne5 {[%clk 00:00:43]} {[%emt
00:00:38]} 39. Bd3 {[%clk 00:03:28]} {[%emt 00:01:23]} Qc6 {[%clk 00:00:36]}
{[%emt 00:00:39]} 40. Qxc6 {[%clk 00:03:14]} {[%emt 00:00:45]} Nxc6 {[%clk
00:01:01]} {[%emt 00:00:05]} 41. Kf3 {[%clk 00:03:13]} {[%emt 00:00:31]} Kf6
{[%clk 00:00:38]} {[%emt 00:00:53]} 42. Ke4 {[%clk 00:03:19]} {[%emt 00:00:22]}
Ne7 {[%clk 00:00:39]} {[%emt 00:00:30]} 43. Bc4 {[%clk 00:03:02]} {[%emt
00:00:48]} h5 {[%clk 00:00:40]} {[%emt 00:00:29]} 44. Be2 {[%clk 00:02:20]}
{[%emt 00:01:11]} h4 {[%clk 00:00:53]} {[%emt 00:00:18]} 45. gxh4 {[%clk
00:02:07]} {[%emt 00:00:43]} gxh4 {[%clk 00:01:16]} {[%emt 00:00:06]} 46. Kf4
{[%clk 00:02:13]} {[%emt 00:00:23]} Nd5+ {[%clk 00:00:50]} {[%emt 00:00:57]} 47.
Kg4 {[%clk 00:02:26]} {[%emt 00:00:17]} Nc3 {[%clk 00:00:53]} {[%emt 00:00:27]}
48. Ba6 {[%clk 00:01:46]} {[%emt 00:01:10]} Ne4 {[%clk 00:00:52]} {[%emt
00:00:30]} 49. f3 {[%clk 00:02:03]} {[%emt 00:00:13]} Nd2 {[%clk 00:00:39]}
{[%emt 00:00:43]} 50. Bb7 {[%clk 00:00:53]} {[%emt 00:01:39]} Nxb3 {[%clk
00:00:54]} {[%emt 00:00:16]} 51. Kxh4 {[%clk 00:01:21]} {[%emt 00:00:02]} Nd4
{[%clk 00:00:37]} {[%emt 00:00:47]} 52. Kg4 {[%clk 00:01:28]} {[%emt 00:00:22]}
b5 {[%clk 00:00:34]} {[%emt 00:00:34]} 53. axb5 {[%clk 00:01:50]} {[%emt
00:00:08]} Nxb5 {[%clk 00:01:01]} {[%emt 00:00:03]} 54. Kf4 {[%clk 00:00:58]}
{[%emt 00:01:22]} Nd4 {[%clk 00:00:44]} {[%emt 00:00:45]} 55. Ke4 {[%clk
00:01:04]} {[%emt 00:00:24]} Ne6 {[%clk 00:01:03]} {[%emt 00:00:12]} 56. Bc6
{[%clk 00:00:52]} {[%emt 00:00:37]} Ng5+ {[%clk 00:01:00]} {[%emt 00:00:39]} 57.
Kd3 {[%clk 00:01:08]} {[%emt 00:00:11]} Nxh3 {[%clk 00:00:43]} {[%emt
00:00:49]} 58. Be8 {[%clk 00:01:21]} {[%emt 00:00:16]} Ng5 {[%clk 00:00:34]}
{[%emt 00:00:40]} 59. Kc4 {[%clk 00:01:37]} {[%emt 00:00:14]} Nxf3 {[%clk
00:00:43]} {[%emt 00:00:22]} 60. Kb5 {[%clk 00:01:39]} {[%emt 00:00:27]} Ke7
{[%clk 00:00:55]} {[%emt 00:00:18]} 61. Bxf7 {[%clk 00:02:03]} {[%emt
00:00:05]} Kxf7 {[%clk 00:01:12]} {[%emt 00:00:13]} 62. Kxa5 {[%clk 00:02:29]}
{[%emt 00:00:04]} 1/2-1/2

[Event "Juniorallsvenskan 2019, Division 1 and 2"]
[Site "Molnlycke kulturhus, Biblioteksgatan 2, Molnlycke, Sweden"]
[Date "2019.11.23"]
[Round "3.5"]
[White "Sundin, Emanuel"]
[Black "Pantzar, Milton"]
[Result "1/2-1/2"]
[TimeControl "90 minutes + 30 seconds per move from move one"]
[BlackTitle "FM"]
[WhiteFideId "1719173"]
[BlackFideId "1721003"]
[WhiteElo "2093"]
[BlackElo "2406"]

1. e4 {[%clk 01:30:47]} {[%emt 00:00:12]} e5 {[%clk 01:30:49]} {[%emt
00:00:12]} 2. Nf3 {[%clk 01:31:03]} {[%emt 00:00:14]} Nc6 {[%clk 01:31:13]}
{[%emt 00:00:06]} 3. Bc4 {[%clk 01:30:25]} {[%emt 00:01:08]} Nf6 {[%clk
01:31:29]} {[%emt 00:00:14]} 4. d4 {[%clk 01:27:46]} {[%emt 00:03:09]} exd4
{[%clk 01:30:27]} {[%emt 00:01:32]} 5. O-O {[%clk 01:24:14]} {[%emt 00:04:02]}
Nxe4 {[%clk 01:29:26]} {[%emt 00:01:31]} 6. Re1 {[%clk 01:23:49]} {[%emt
00:00:54]} d5 {[%clk 01:29:42]} {[%emt 00:00:15]} 7. Bxd5 {[%clk 01:23:14]}
{[%emt 00:01:05]} Qxd5 {[%clk 01:30:05]} {[%emt 00:00:06]} 8. Nc3 {[%clk
01:23:19]} {[%emt 00:00:25]} Qa5 {[%clk 01:25:47]} {[%emt 00:04:48]} 9. Nxe4
{[%clk 01:16:38]} {[%emt 00:07:11]} Be6 {[%clk 01:25:45]} {[%emt 00:00:31]} 10.
Neg5 {[%clk 01:13:43]} {[%emt 00:03:26]} O-O-O {[%clk 01:23:16]} {[%emt
00:02:59]} 11. Nxe6 {[%clk 01:12:52]} {[%emt 00:01:21]} fxe6 {[%clk 01:23:41]}
{[%emt 00:00:05]} 12. Rxe6 {[%clk 01:12:35]} {[%emt 00:00:47]} Be7 {[%clk
01:21:27]} {[%emt 00:02:44]} 13. Qe2 {[%clk 01:00:19]} {[%emt 00:12:46]} Bf6
{[%clk 01:19:05]} {[%emt 00:02:52]} 14. Bf4 {[%clk 00:53:33]} {[%emt 00:07:16]}
Qb4 {[%clk 01:11:40]} {[%emt 00:07:55]} 15. Bc1 {[%clk 00:39:55]} {[%emt
00:14:08]} Rhf8 {[%clk 00:59:02]} {[%emt 00:13:08]} 16. Ne1 {[%clk 00:38:25]}
{[%emt 00:02:00]} d3 {[%clk 00:39:37]} {[%emt 00:19:55]} 17. Nxd3 {[%clk
00:34:24]} {[%emt 00:04:31]} Qc4 {[%clk 00:39:33]} {[%emt 00:00:34]} 18. Re4
{[%clk 00:28:42]} {[%emt 00:06:12]} Rd4 {[%clk 00:37:47]} {[%emt 00:02:16]} 19.
Re3 {[%clk 00:20:36]} {[%emt 00:08:36]} Nb4 {[%clk 00:28:00]} {[%emt 00:10:17]}
20. c3 {[%clk 00:10:57]} {[%emt 00:10:09]} Rxd3 {[%clk 00:27:25]} {[%emt
00:01:05]} 21. cxb4 {[%clk 00:11:03]} {[%emt 00:00:24]} Rfd8 {[%clk 00:26:26]}
{[%emt 00:01:29]} 22. Rxd3 {[%clk 00:10:37]} {[%emt 00:00:56]} Qxd3 {[%clk
00:25:59]} {[%emt 00:00:57]} 23. Qxd3 {[%clk 00:10:05]} {[%emt 00:01:03]} Rxd3
{[%clk 00:26:24]} {[%emt 00:00:04]} 24. Be3 {[%clk 00:08:29]} {[%emt 00:02:06]}
Bxb2 {[%clk 00:26:27]} {[%emt 00:00:26]} 25. Rb1 {[%clk 00:07:44]} {[%emt
00:01:16]} Bf6 {[%clk 00:25:55]} {[%emt 00:01:02]} 26. a4 {[%clk 00:07:31]}
{[%emt 00:00:43]} Ra3 {[%clk 00:22:17]} {[%emt 00:04:08]} 27. a5 {[%clk
00:07:32]} {[%emt 00:00:29]} a6 {[%clk 00:22:32]} {[%emt 00:00:15]} 28. Kf1
{[%clk 00:07:09]} {[%emt 00:00:53]} Kd7 {[%clk 00:21:23]} {[%emt 00:01:40]} 29.
Ke2 {[%clk 00:06:29]} {[%emt 00:01:10]} Kc6 {[%clk 00:20:29]} {[%emt 00:01:23]}
30. Bf4 {[%clk 00:01:42]} {[%emt 00:05:17]} Rc3 {[%clk 00:19:33]} {[%emt
00:01:26]} 31. g4 {[%clk 00:01:01]} {[%emt 00:01:12]} Rc4 {[%clk 00:19:02]}
{[%emt 00:01:01]} 32. Rc1 {[%clk 00:00:36]} {[%emt 00:00:55]} Rxc1 {[%clk
00:14:09]} {[%emt 00:05:23]} 33. Bxc1 {[%clk 00:01:05]} Kb5 {[%clk 00:13:29]}
{[%emt 00:01:10]} 34. g5 {[%clk 00:00:34]} {[%emt 00:01:01]} Bc3 {[%clk
00:11:19]} {[%emt 00:02:40]} 35. f4 {[%clk 00:00:35]} {[%emt 00:00:29]} g6
{[%clk 00:10:20]} {[%emt 00:01:29]} 36. Bd2 {[%clk 00:00:32]} {[%emt 00:00:33]}
Bxb4 {[%clk 00:03:28]} {[%emt 00:07:22]} 37. Bxb4 {[%clk 00:00:47]} {[%emt
00:00:15]} Kxb4 {[%clk 00:03:57]} {[%emt 00:00:01]} 38. h4 {[%clk 00:01:11]}
{[%emt 00:00:06]} Kc4 {[%clk 00:03:59]} {[%emt 00:00:28]} 39. f5 {[%clk
00:01:20]} {[%emt 00:00:21]} Kd5 {[%clk 00:04:13]} {[%emt 00:00:16]} 40. f6
{[%clk 00:01:43]} {[%emt 00:00:07]} Ke6 {[%clk 00:04:42]} {[%emt 00:00:02]} 41.
Kd3 {[%clk 00:02:05]} {[%emt 00:00:07]} b6 {[%clk 00:04:50]} {[%emt 00:00:22]}
42. axb6 {[%clk 00:02:17]} {[%emt 00:00:18]} cxb6 {[%clk 00:05:14]} {[%emt
00:00:06]} 43. Kc4 {[%clk 00:02:42]} {[%emt 00:00:05]} Kf7 {[%clk 00:05:28]}
{[%emt 00:00:16]} 44. Kb4 {[%clk 00:03:04]} {[%emt 00:00:09]} 1/2-1/2

[Event "Juniorallsvenskan 2019, Division 1 and 2"]
[Site "Molnlycke kulturhus, Biblioteksgatan 2, Molnlycke, Sweden"]
[Date "2019.11.23"]
[Round "3.6"]
[White "Petersson, Baldur Teodor"]
[Black "Nilsson, Joakim"]
[Result "1/2-1/2"]
[TimeControl "90 minutes + 30 seconds per move from move one"]
[WhiteTitle "CM"]
[BlackTitle "FM"]
[WhiteFideId "2309157"]
[BlackFideId "1723383"]
[WhiteElo "2216"]
[BlackElo "2288"]

1. e4 {[%clk 01:30:57]} {[%emt 00:00:02]} c5 {[%clk 01:30:52]} {[%emt
00:00:08]} 2. Nf3 {[%clk 01:30:15]} {[%emt 00:01:12]} Nc6 {[%clk 01:31:13]}
{[%emt 00:00:08]} 3. d3 {[%clk 01:30:10]} {[%emt 00:00:35]} g6 {[%clk
01:31:32]} {[%emt 00:00:12]} 4. g3 {[%clk 01:30:34]} {[%emt 00:00:06]} Bg7
{[%clk 01:31:54]} {[%emt 00:00:07]} 5. Bg2 {[%clk 01:31:00]} {[%emt 00:00:05]}
d6 {[%clk 01:31:46]} {[%emt 00:00:38]} 6. O-O {[%clk 01:31:14]} {[%emt
00:00:14]} e5 {[%clk 01:31:45]} {[%emt 00:00:33]} 7. c3 {[%clk 01:31:31]}
{[%emt 00:00:13]} Nge7 {[%clk 01:32:05]} {[%emt 00:00:10]} 8. a3 {[%clk
01:31:54]} {[%emt 00:00:07]} O-O {[%clk 01:32:22]} {[%emt 00:00:14]} 9. b4
{[%clk 01:32:00]} {[%emt 00:00:24]} h6 {[%clk 01:29:35]} {[%emt 00:03:17]} 10.
Nbd2 {[%clk 01:20:02]} {[%emt 00:12:27]} Be6 {[%clk 01:29:51]} {[%emt
00:00:14]} 11. Re1 {[%clk 01:19:27]} {[%emt 00:01:05]} Qd7 {[%clk 01:29:41]}
{[%emt 00:00:40]} 12. Bb2 {[%clk 01:15:39]} {[%emt 00:04:17]} a6 {[%clk
01:18:00]} {[%emt 00:12:11]} 13. Nc4 {[%clk 01:10:06]} {[%emt 00:06:04]} Rad8
{[%clk 01:10:18]} {[%emt 00:08:12]} 14. Nfd2 {[%clk 01:06:33]} {[%emt
00:04:03]} cxb4 {[%clk 00:50:41]} {[%emt 00:20:07]} 15. axb4 {[%clk 01:05:06]}
{[%emt 00:01:57]} f5 {[%clk 00:46:24]} {[%emt 00:04:48]} 16. Qe2 {[%clk
00:59:21]} {[%emt 00:06:14]} f4 {[%emt 00:05:43]} 17. Nb6 {[%clk 00:56:45]}
{[%emt 00:02:56]} Qe8 {[%clk 00:40:57]} {[%emt 00:00:54]} 18. Bf3 {[%clk
00:46:05]} {[%emt 00:11:11]} Qf7 {[%clk 00:38:12]} {[%emt 00:03:14]} 19. Rf1
{[%clk 00:43:01]} {[%emt 00:03:34]} Bh3 {[%clk 00:34:05]} {[%emt 00:04:37]} 20.
Bg2 {[%clk 00:41:54]} {[%emt 00:01:37]} Be6 {[%clk 00:33:37]} {[%emt 00:00:58]}
21. Bf3 {[%clk 00:42:09]} {[%emt 00:00:15]} Bh3 {[%clk 00:33:45]} {[%emt
00:00:22]} 22. Bg2 {[%clk 00:42:33]} {[%emt 00:00:07]} Be6 {[%clk 00:33:42]}
{[%emt 00:00:33]} 1/2-1/2

[Event "Juniorallsvenskan 2019, Division 1 and 2"]
[Site "Molnlycke kulturhus, Biblioteksgatan 2, Molnlycke, Sweden"]
[Date "2019.11.23"]
[Round "3.7"]
[White "Hall, Alexander"]
[Black "Carlsson, Ludvig"]
[Result "0-1"]
[TimeControl "90 minutes + 30 seconds per move from move one"]
[BlackTitle "CM"]
[WhiteFideId "1738933"]
[BlackFideId "1727010"]
[WhiteElo "1887"]
[BlackElo "2146"]

1. d4 {[%clk 01:30:57]} {[%emt 00:00:02]} g6 {[%clk 01:30:08]} {[%emt
00:00:52]} 2. e4 {[%clk 01:31:19]} {[%emt 00:00:09]} Bg7 {[%clk 01:30:31]}
{[%emt 00:00:07]} 3. Nc3 {[%clk 01:31:44]} {[%emt 00:00:05]} d6 {[%clk
01:30:13]} {[%emt 00:00:48]} 4. Bc4 {[%clk 01:31:45]} {[%emt 00:00:29]} e6
{[%clk 01:28:04]} {[%emt 00:02:39]} 5. Nf3 {[%clk 01:30:31]} {[%emt 00:01:45]}
a6 {[%clk 01:27:25]} {[%emt 00:01:08]} 6. a4 {[%clk 01:27:20]} {[%emt
00:03:42]} b6 {[%clk 01:27:45]} {[%emt 00:00:10]} 7. Bg5 {[%clk 01:26:27]}
{[%emt 00:01:23]} Ne7 {[%clk 01:27:55]} {[%emt 00:00:20]} 8. Qd2 {[%clk
01:25:44]} {[%emt 00:01:13]} h6 {[%clk 01:28:15]} {[%emt 00:00:10]} 9. Be3
{[%clk 01:26:03]} {[%emt 00:00:11]} Nd7 {[%clk 01:24:53]} {[%emt 00:03:50]} 10.
Rd1 {[%clk 01:23:03]} {[%emt 00:03:33]} Bb7 {[%clk 01:24:13]} {[%emt 00:01:10]}
11. O-O {[%clk 01:14:31]} {[%emt 00:09:01]} Nf6 {[%clk 01:15:26]} {[%emt
00:09:17]} 12. d5 {[%clk 00:58:26]} {[%emt 00:16:36]} e5 {[%clk 01:11:33]}
{[%emt 00:04:23]} 13. h3 {[%clk 00:56:56]} {[%emt 00:02:00]} Bc8 {[%clk
01:06:05]} {[%emt 00:05:58]} 14. Nh2 {[%clk 00:50:51]} {[%emt 00:06:35]} g5
{[%clk 01:04:23]} {[%emt 00:02:12]} 15. Be2 {[%clk 00:47:36]} {[%emt 00:03:45]}
Ng6 {[%clk 01:03:51]} {[%emt 00:01:03]} 16. Ng4 {[%clk 00:39:26]} {[%emt
00:08:39]} h5 {[%clk 01:01:25]} {[%emt 00:02:56]} 17. Nxf6+ {[%clk 00:39:44]}
{[%emt 00:00:12]} Bxf6 {[%clk 01:01:49]} {[%emt 00:00:06]} 18. f3 {[%clk
00:34:18]} {[%emt 00:05:54]} Nf4 {[%clk 01:00:54]} {[%emt 00:01:26]} 19. Bc4
{[%clk 00:33:55]} {[%emt 00:00:54]} Bd7 {[%clk 00:58:14]} {[%emt 00:03:11]} 20.
b3 {[%clk 00:25:34]} {[%emt 00:08:51]} Qe7 {[%clk 00:54:59]} {[%emt 00:03:45]}
21. Ne2 {[%clk 00:13:01]} {[%emt 00:13:04]} Rh7 {[%clk 00:54:26]} {[%emt
00:01:03]} 22. Kh2 {[%clk 00:13:05]} {[%emt 00:00:26]} Qf8 {[%clk 00:53:06]}
{[%emt 00:01:50]} 23. Nxf4 {[%clk 00:13:16]} {[%emt 00:00:19]} gxf4 {[%clk
00:52:18]} {[%emt 00:01:18]} 24. Bf2 {[%clk 00:13:38]} {[%emt 00:00:08]} Qe7
{[%clk 00:52:30]} {[%emt 00:00:18]} 25. g3 {[%clk 00:11:49]} {[%emt 00:02:18]}
fxg3+ {[%clk 00:50:56]} {[%emt 00:02:05]} 26. Bxg3 {[%clk 00:12:09]} {[%emt
00:00:10]} Bg5 {[%clk 00:51:24]} {[%emt 00:00:03]} 27. Qe2 {[%clk 00:11:39]}
{[%emt 00:00:57]} h4 {[%clk 00:51:33]} {[%emt 00:00:23]} 28. Be1 {[%clk
00:09:26]} {[%emt 00:02:43]} Bf4+ {[%clk 00:50:29]} {[%emt 00:01:34]} 29. Kh1
{[%clk 00:09:48]} {[%emt 00:00:07]} Rg7 {[%clk 00:46:39]} {[%emt 00:04:22]} 30.
Bd2 {[%clk 00:07:40]} {[%emt 00:02:38]} Rg3 {[%clk 00:45:59]} {[%emt 00:01:10]}
31. Bxf4 {[%clk 00:07:32]} {[%emt 00:00:38]} exf4 {[%clk 00:46:24]} {[%emt
00:00:05]} 32. Rf2 {[%clk 00:03:28]} {[%emt 00:04:33]} Qg5 {[%clk 00:44:08]}
{[%emt 00:02:47]} 33. Rg2 {[%clk 00:02:31]} {[%emt 00:01:27]} Bxh3 {[%clk
00:40:59]} {[%emt 00:03:39]} 34. Rxg3 {[%clk 00:02:51]} {[%emt 00:00:09]} hxg3
{[%clk 00:41:23]} {[%emt 00:00:06]} 35. Bxa6 {[%clk 00:03:05]} {[%emt
00:00:17]} Ke7 {[%clk 00:40:42]} {[%emt 00:01:10]} 36. e5 {[%clk 00:00:31]}
{[%emt 00:03:05]} dxe5 {[%clk 00:39:20]} {[%emt 00:01:52]} 37. Qc4 {[%clk
00:00:31]} {[%emt 00:00:31]} Rxa6 {[%clk 00:38:42]} {[%emt 00:01:07]} 38. Qxc7+
{[%clk 00:00:33]} {[%emt 00:00:28]} Kf8 {[%clk 00:38:55]} {[%emt 00:00:16]} 39.
d6 {[%clk 00:00:32]} {[%emt 00:00:32]} Qh5 {[%clk 00:38:40]} {[%emt 00:00:45]}
40. Qd8+ {[%clk 00:00:31]} {[%emt 00:00:33]} Kg7 {[%clk 00:39:02]} {[%emt
00:00:07]} 41. Kg1 {[%clk 00:00:36]} {[%emt 00:00:25]} Bg2 {[%clk 00:39:20]}
{[%emt 00:00:12]} 42. Qg5+ {[%clk 00:00:32]} {[%emt 00:00:34]} Qxg5 {[%clk
00:39:43]} {[%emt 00:00:06]} 0-1

[Event "Juniorallsvenskan 2019, Division 1 and 2"]
[Site "Molnlycke kulturhus, Biblioteksgatan 2, Molnlycke, Sweden"]
[Date "2019.11.23"]
[Round "3.8"]
[White "Emmoth, Alfons"]
[Black "Mitra, Akash"]
[Result "1/2-1/2"]
[TimeControl "90 minutes + 30 seconds per move from move one"]
[WhiteFideId "1718266"]
[BlackFideId "1726714"]
[WhiteElo "2066"]
[BlackElo "1975"]

1. d4 {[%clk 01:30:58]} {[%emt 00:00:02]} Nf6 {[%clk 01:30:14]} {[%emt
00:00:46]} 2. c4 {[%clk 01:31:19]} {[%emt 00:00:09]} g6 {[%clk 01:30:41]}
{[%emt 00:00:03]} 3. Nc3 {[%clk 01:31:35]} {[%emt 00:00:14]} Bg7 {[%clk
01:31:08]} {[%emt 00:00:04]} 4. e4 {[%clk 01:31:44]} {[%emt 00:00:20]} d6
{[%clk 01:31:35]} {[%emt 00:00:03]} 5. Nf3 {[%clk 01:31:53]} {[%emt 00:00:21]}
O-O {[%clk 01:31:55]} {[%emt 00:00:11]} 6. Be2 {[%clk 01:31:59]} {[%emt
00:00:24]} e5 {[%clk 01:32:17]} {[%emt 00:00:07]} 7. Bg5 {[%clk 01:31:51]}
{[%emt 00:00:38]} Nc6 {[%clk 01:25:51]} {[%emt 00:06:56]} 8. dxe5 {[%clk
01:31:31]} {[%emt 00:00:51]} dxe5 {[%clk 01:21:05]} {[%emt 00:05:16]} 9. Qxd8
{[%clk 01:31:59]} {[%emt 00:00:02]} Nxd8 {[%clk 01:20:49]} {[%emt 00:00:46]} 10.
Bxf6 {[%clk 01:32:18]} {[%emt 00:00:12]} Bxf6 {[%clk 01:21:09]} {[%emt
00:00:10]} 11. Nd5 {[%clk 01:32:46]} {[%emt 00:00:02]} Bg7 {[%clk 01:21:27]}
{[%emt 00:00:12]} 12. Nxc7 {[%clk 01:33:08]} {[%emt 00:00:08]} Rb8 {[%clk
01:21:26]} {[%emt 00:00:31]} 13. O-O {[%clk 01:31:25]} {[%emt 00:02:12]} Ne6
{[%clk 01:21:10]} {[%emt 00:00:46]} 14. Nxe6 {[%clk 01:26:52]} {[%emt
00:05:04]} Bxe6 {[%clk 01:21:35]} {[%emt 00:00:05]} 15. Rfd1 {[%clk 01:27:12]}
{[%emt 00:00:08]} Rfc8 {[%clk 01:19:14]} {[%emt 00:02:53]} 16. b3 {[%clk
01:24:53]} {[%emt 00:02:49]} Bg4 {[%clk 01:12:42]} {[%emt 00:07:02]} 17. Kf1
{[%clk 01:22:22]} {[%emt 00:03:01]} Rc7 {[%clk 01:07:15]} {[%emt 00:05:56]} 18.
Ne1 {[%clk 01:20:34]} {[%emt 00:02:18]} Be6 {[%clk 01:06:44]} {[%emt 00:01:02]}
19. Nc2 {[%clk 01:16:03]} {[%emt 00:05:01]} Bf8 {[%clk 01:04:24]} {[%emt
00:02:50]} 20. Ne3 {[%clk 01:11:40]} {[%emt 00:04:53]} Bc5 {[%clk 01:01:42]}
{[%emt 00:03:11]} 21. Nd5 {[%clk 01:09:40]} {[%emt 00:02:30]} Bxd5 {[%clk
00:59:55]} {[%emt 00:02:18]} 22. Rxd5 {[%clk 01:09:52]} {[%emt 00:00:18]} Bd4
{[%clk 00:57:41]} {[%emt 00:02:44]} 23. Rd1 {[%clk 01:10:06]} {[%emt 00:00:16]}
Kf8 {[%clk 00:56:19]} {[%emt 00:01:52]} 24. Rd3 {[%clk 01:07:31]} {[%emt
00:03:05]} Ke7 {[%clk 00:53:25]} {[%emt 00:03:24]} 25. f4 {[%clk 01:04:00]}
{[%emt 00:04:02]} f6 {[%clk 00:52:59]} {[%emt 00:00:56]} 26. Rh3 {[%clk
01:02:25]} {[%emt 00:02:06]} Rh8 {[%clk 00:45:42]} {[%emt 00:07:46]} 27. Rf3
{[%clk 00:55:54]} {[%emt 00:07:02]} b6 {[%clk 00:44:46]} {[%emt 00:01:25]} 28.
Bd3 {[%clk 00:53:36]} {[%emt 00:02:48]} Rc6 {[%clk 00:39:34]} {[%emt 00:05:41]}
29. h4 {[%clk 00:50:45]} {[%emt 00:03:23]} h6 {[%clk 00:32:14]} {[%emt
00:07:51]} 30. Rh3 {[%clk 00:45:52]} {[%emt 00:05:23]} Rcc8 {[%clk 00:27:21]}
{[%emt 00:05:21]} 31. Be2 {[%clk 00:44:11]} {[%emt 00:02:12]} Rcd8 {[%clk
00:26:27]} {[%emt 00:01:24]} 32. fxe5 {[%clk 00:36:18]} {[%emt 00:08:24]} fxe5
{[%clk 00:25:39]} {[%emt 00:01:18]} 33. Rg3 {[%clk 00:34:18]} {[%emt 00:02:30]}
Rhf8+ {[%clk 00:24:53]} {[%emt 00:01:15]} 34. Bf3 {[%clk 00:29:54]} {[%emt
00:04:54]} Rf6 {[%clk 00:24:40]} {[%emt 00:00:42]} 35. Rxd8 {[%clk 00:27:43]}
{[%emt 00:02:42]} Kxd8 {[%clk 00:25:01]} {[%emt 00:00:10]} 36. Ke2 {[%clk
00:28:11]} {[%emt 00:00:02]} Ke7 {[%clk 00:23:01]} {[%emt 00:02:30]} 37. Rh3
{[%clk 00:27:37]} {[%emt 00:01:04]} Kd6 {[%clk 00:21:43]} {[%emt 00:01:49]} 38.
Kd3 {[%clk 00:24:09]} {[%emt 00:03:57]} Kc5 {[%clk 00:19:53]} {[%emt 00:02:18]}
39. Kc2 {[%clk 00:23:15]} {[%emt 00:01:27]} Kb4 {[%clk 00:15:36]} {[%emt
00:04:47]} 40. a4 {[%clk 00:21:36]} {[%emt 00:02:09]} a6 {[%clk 00:11:23]}
{[%emt 00:04:42]} 41. Rg3 {[%clk 00:18:32]} {[%emt 00:03:34]} Rc6 {[%clk
00:08:07]} {[%emt 00:03:46]} 1/2-1/2